[Event "GER-ch Blitz 2019"]
[Site "Magdeburg"]
[Date "2019.05.25"]
[Round "10.9"]
[White "Kopylov, Daniel"]
[Black "Heistermann, Till"]
[Result "0-1"]
[ECO "C41"]
[WhiteElo "2263"]
[BlackElo "2181"]
[Annotator "NA"]
[PlyCount "144"]
[EventDate "2019.05.25"]
[EventType "tourn"]
[EventCountry "GER"]
[Tiebreak "Number of wins+Number of black wins"]
[SourceTitle "playchess.com"]
[Source "ChessBase"]
[SourceQuality "1"]
[TimeControl "180+2"]

1. e4 {[%emt 0:00:00]} d6 {[%emt 0:00:00]} 2. d4 {[%emt 0:00:01]} e5 {[%emt 0:
00:00]} 3. Nf3 {[%emt 0:00:02]} exd4 {[%emt 0:00:00]} 4. Nxd4 {[%emt 0:00:01]}
Nf6 {[%emt 0:00:00]} 5. Nc3 {[%emt 0:00:02]} Be7 {[%emt 0:00:01]} 6. Bc4 {
[%emt 0:00:02]} O-O {[%emt 0:00:02]} 7. O-O {[%emt 0:00:02]} Re8 {[%emt 0:00:
01]} 8. h3 {[%emt 0:00:05]} Nbd7 {[%emt 0:00:03]} 9. Re1 {[%emt 0:00:04]} Bf8 {
[%emt 0:00:01]} 10. a4 {[%emt 0:00:02]} c6 {[%emt 0:00:13]} 11. Bf4 {[%emt 0:
00:44]} Ne5 {[%emt 0:00:02]} 12. Bxe5 {[%emt 0:00:08]} dxe5 {[%emt 0:00:02]}
13. Nf3 {[%emt 0:00:08]} Nd7 {[%emt 0:00:31]} 14. Qd2 {[%emt 0:00:09]} Be7 {
[%emt 0:00:05]} 15. Rad1 {[%emt 0:00:04]} Bf6 {[%emt 0:00:05]} 16. Ne2 {
[%emt 0:00:03]} Qe7 {[%emt 0:00:08]} 17. Ng3 {[%emt 0:00:05]} Nc5 {[%emt 0:00:
08]} 18. a5 {[%emt 0:00:12]} g6 {[%emt 0:00:04]} 19. b4 {[%emt 0:00:07]} Ne6 {
[%emt 0:00:02]} 20. c3 {[%emt 0:00:01]} Nf4 {[%emt 0:00:05]} 21. Ne2 {[%emt 0:
00:05]} Be6 {[%emt 0:00:19]} 22. Bxe6 {[%emt 0:00:31]} Nxe6 {[%emt 0:00:01]}
23. Qd7 {[%emt 0:00:07]} Rad8 {[%emt 0:00:03]} 24. Qxe7 {[%emt 0:00:01]} Rxe7 {
[%emt 0:00:05]} 25. Rxd8+ {[%emt 0:00:06]} Nxd8 {[%emt 0:00:01]} 26. Rd1 {
[%emt 0:00:01]} Ne6 {[%emt 0:00:02]} 27. g3 {[%emt 0:00:04]} Kf8 {[%emt 0:00:
02]} 28. Nc1 {[%emt 0:00:02]} Ke8 {[%emt 0:00:00]} 29. Nb3 {[%emt 0:00:05]} Rd7
{[%emt 0:00:05]} 30. Rxd7 Kxd7 {[%emt 0:00:01]} 31. h4 {[%emt 0:00:10]} h5 {
[%emt 0:00:01]} 32. Ne1 {[%emt 0:00:02]} b6 {[%emt 0:00:04]} 33. Nd3 {[%emt 0:
00:02]} Nc7 {[%emt 0:00:05]} 34. c4 {[%emt 0:00:29]} Ne6 {[%emt 0:00:02]} 35.
Kf1 {[%emt 0:00:01]} g5 {[%emt 0:00:03]} 36. hxg5 {[%emt 0:00:05]} Nxg5 {
[%emt 0:00:00]} 37. Nd2 {[%emt 0:00:00]} Ke6 {[%emt 0:00:05]} 38. f4 {[%emt 0:
00:04]} Nh7 {[%emt 0:00:07]} 39. f5+ {[%emt 0:00:04]} Kd6 {[%emt 0:00:03]} 40.
Nf3 {[%emt 0:00:08]} c5 {[%emt 0:00:05]} 41. axb6 {[%emt 0:00:05]} axb6 {
[%emt 0:00:00]} 42. bxc5+ {[%emt 0:00:01]} bxc5 {[%emt 0:00:00]} 43. Ke2 {
[%emt 0:00:01]} Nf8 {[%emt 0:00:03]} 44. Nc1 {[%emt 0:00:03]} Nd7 {[%emt 0:00:
02]} 45. Na2 {[%emt 0:00:01]} Nb6 {[%emt 0:00:02]} 46. Kd3 {[%emt 0:00:01]} Na4
{[%emt 0:00:21]} 47. Nd2 {[%emt 0:00:09]} Bg5 {[%emt 0:00:02]} 48. Nb1 {
[%emt 0:00:01]} Nb2+ {[%emt 0:00:05]} 49. Kc3 {[%emt 0:00:01]} Nd1+ {[%emt 0:
00:01]} 50. Kd3 {[%emt 0:00:00]} Nf2+ {[%emt 0:00:01]} 51. Ke2 {[%emt 0:00:01]}
Nxe4 {[%emt 0:00:01]} 52. Nac3 {[%emt 0:00:01]} Nxc3+ 53. Nxc3 {[%emt 0:00:01]}
Be7 {[%emt 0:00:07]} 54. Ne4+ {[%emt 0:00:01]} Kc6 {[%emt 0:00:02]} 55. Kf3 {
[%emt 0:00:03]} f6 {[%emt 0:00:02]} 56. Kg2 {[%emt 0:00:02]} Kb6 {[%emt 0:00:
03]} 57. Nc3 {[%emt 0:00:03]} Ka5 {[%emt 0:00:01]} 58. Nd5 {[%emt 0:00:00]} Bd8
{[%emt 0:00:00]} 59. Kh3 {[%emt 0:00:01]} Ka4 {[%emt 0:00:01]} 60. Kh4 {
[%emt 0:00:03]} Kb3 {[%emt 0:00:00]} 61. Kxh5 {[%emt 0:00:02]} Kxc4 {[%emt 0:
00:01]} 62. Ne3+ {[%emt 0:00:01]} Kd3 {[%emt 0:00:01]} 63. Nd5 {[%emt 0:00:02]}
c4 {[%emt 0:00:01]} 64. Kg6 {[%emt 0:00:11]} c3 {[%emt 0:00:01]} 65. g4 {
[%emt 0:00:03]} c2 {[%emt 0:00:01]} 66. Nb4+ {[%emt 0:00:00]} Kd2 {[%emt 0:00:
01]} 67. Nxc2 {[%emt 0:00:01]} Kxc2 {[%emt 0:00:01]} 68. Kf7 {[%emt 0:00:04]}
e4 {[%emt 0:00:01]} 69. Ke8 {[%emt 0:00:01]} Bb6 {[%emt 0:00:02]} 70. Ke7 {
[%emt 0:00:01]} Bd4 {[%emt 0:00:01]} 71. Ke6 {[%emt 0:00:01]} e3 {[%emt 0:00:
00]} 72. Kd5 {[%emt 0:00:00]} Kd3 {[%emt 0:00:01]} 0-1

[Event "GER-ch Blitz 2019"]
[Site "Magdeburg"]
[Date "2019.05.25"]
[Round "10.10"]
[White "Barzen, Pascal"]
[Black "Schmaltz, Roland"]
[Result "1-0"]
[ECO "B07"]
[WhiteElo "2292"]
[BlackElo "2461"]
[Annotator "ChessBase"]
[PlyCount "65"]
[EventDate "2019.05.25"]
[EventType "tourn"]
[EventCountry "GER"]
[Tiebreak "Number of wins+Number of black wins"]
[SourceTitle "playchess.com"]
[Source "ChessBase"]
[SourceQuality "1"]
[TimeControl "180+2"]

1. e4 {[%emt 0:00:00]} d6 {[%emt 0:00:00]} 2. d4 {[%emt 0:00:00]} Nf6 {[%emt 0:
00:00]} 3. Nc3 {[%emt 0:00:01]} g6 {[%emt 0:00:01]} 4. Be3 {[%emt 0:00:01]} a6
{[%emt 0:00:00]} 5. f3 {[%emt 0:00:02]} b5 {[%emt 0:00:03]} 6. Qd2 {[%emt 0:00:
01]} Nbd7 {[%emt 0:00:01]} 7. O-O-O {[%emt 0:00:05]} Nb6 {[%emt 0:00:01]} 8.
Bd3 {[%emt 0:00:02]} Bb7 {[%emt 0:00:06]} 9. Kb1 {[%emt 0:00:02]} e6 {[%emt 0:
00:04]} 10. h4 {[%emt 0:00:03]} h6 {[%emt 0:00:11]} 11. g4 {[%emt 0:00:05]} h5
{[%emt 0:00:02]} 12. g5 {[%emt 0:00:05]} Nfd7 {[%emt 0:00:00]} 13. f4 {[%emt 0:
00:07]} b4 {[%emt 0:00:04]} 14. Nce2 {[%emt 0:00:02]} d5 {[%emt 0:00:01]} 15.
Ng3 {[%emt 0:00:22]} dxe4 {[%emt 0:00:03]} 16. Nxe4 {[%emt 0:00:05]} Be7 {
[%emt 0:00:13]} 17. Nf3 {[%emt 0:00:07]} Nd5 {[%emt 0:00:02]} 18. Ne5 {[%emt 0:
00:06]} Rb8 {[%emt 0:00:13]} 19. Ka1 {[%emt 0:00:09]} O-O {[%emt 0:00:27]} 20.
Rhe1 {[%emt 0:00:09]} Nxe3 {[%emt 0:00:06]} 21. Qxe3 {[%emt 0:00:02]} Bd5 {
[%emt 0:00:14]} 22. c4 {[%emt 0:00:14]} bxc3 {[%emt 0:00:03]} 23. Nxc3 {
[%emt 0:00:01]} Bb7 {[%emt 0:00:13]} 24. Nxg6 {[%emt 0:00:10]} Re8 {[%emt 0:00:
21]} 25. Nxe7+ {[%emt 0:00:05]} Qxe7 {[%emt 0:00:01]} 26. Qe2 {[%emt 0:00:13]}
Qb4 {[%emt 0:00:03]} 27. Rd2 {[%emt 0:00:07]} Nf8 {[%emt 0:00:13]} 28. Qxh5 {
[%emt 0:00:04]} Red8 {[%emt 0:00:02]} 29. g6 {[%emt 0:00:09]} fxg6 {[%emt 0:00:
04]} 30. Bxg6 {[%emt 0:00:03]} Rxd4 {[%emt 0:00:11]} 31. Bf7+ {[%emt 0:00:05]}
Kg7 {[%emt 0:00:01]} 32. Qe5+ {[%emt 0:00:12]} Kxf7 {[%emt 0:00:01]} 33. Rxd4
1-0

[Event "GER-ch Blitz 2019"]
[Site "Magdeburg"]
[Date "2019.05.25"]
[Round "10.11"]
[White "Stein, Robert"]
[Black "Hebbinghaus, Holger"]
[Result "1-0"]
[ECO "A41"]
[WhiteElo "2318"]
[BlackElo "2310"]
[Annotator "NA"]
[PlyCount "67"]
[EventDate "2019.05.25"]
[EventType "tourn"]
[EventCountry "GER"]
[Tiebreak "Number of wins+Number of black wins"]
[SourceTitle "playchess.com"]
[Source "ChessBase"]
[SourceQuality "1"]
[TimeControl "180+2"]

1. d4 {[%emt 0:00:00]} d6 {[%emt 0:00:00]} 2. Nf3 {[%emt 0:00:01]} Bg4 {
[%emt 0:00:00]} 3. c4 {[%emt 0:00:02]} Nd7 {[%emt 0:00:01]} 4. Nc3 {[%emt 0:00:
01]} e5 {[%emt 0:00:09]} 5. e3 {[%emt 0:00:05]} Ngf6 {[%emt 0:00:06]} 6. Be2 {
[%emt 0:00:01]} Be7 {[%emt 0:00:03]} 7. O-O {[%emt 0:00:02]} O-O {[%emt 0:00:
02]} 8. b3 {[%emt 0:00:01]} c6 {[%emt 0:00:06]} 9. h3 {[%emt 0:00:28]} Bh5 {
[%emt 0:00:09]} 10. dxe5 {[%emt 0:00:12]} dxe5 {[%emt 0:00:03]} 11. Bb2 {
[%emt 0:00:01]} Qc7 {[%emt 0:00:05]} 12. Nd2 {[%emt 0:00:02]} Bxe2 13. Qxe2 {
[%emt 0:00:01]} Rfd8 {[%emt 0:00:32]} 14. Nde4 {[%emt 0:00:02]} Nxe4 {[%emt 0:
00:07]} 15. Nxe4 {[%emt 0:00:01]} f5 {[%emt 0:00:09]} 16. Ng3 {[%emt 0:00:01]}
g6 {[%emt 0:00:01]} 17. Rad1 {[%emt 0:00:28]} Bf6 {[%emt 0:00:20]} 18. Qc2 {
[%emt 0:00:10]} Nf8 {[%emt 0:00:10]} 19. Ne2 {[%emt 0:00:05]} Bg7 {[%emt 0:00:
07]} 20. c5 {[%emt 0:00:01]} Qf7 {[%emt 0:00:09]} 21. a3 {[%emt 0:00:09]} Ne6 {
[%emt 0:00:06]} 22. b4 {[%emt 0:00:04]} a6 {[%emt 0:00:13]} 23. Nc1 {[%emt 0:
00:13]} Rxd1 {[%emt 0:00:22]} 24. Rxd1 {[%emt 0:00:01]} Rd8 {[%emt 0:00:01]}
25. Nb3 {[%emt 0:00:06]} Rxd1+ {[%emt 0:00:08]} 26. Qxd1 {[%emt 0:00:01]} Qe7 {
[%emt 0:00:04]} 27. Na5 {[%emt 0:00:02]} Nd8 {[%emt 0:00:05]} 28. e4 {[%emt 0:
00:19]} f4 {[%emt 0:00:08]} 29. Nc4 {[%emt 0:00:04]} Nf7 {[%emt 0:00:03]} 30.
Qg4 {[%emt 0:00:09]} Qd8 {[%emt 0:00:06]} 31. Qe6 {[%emt 0:00:01]} Kf8 {
[%emt 0:00:03]} 32. Nxe5 {[%emt 0:00:14]} Bxe5 {[%emt 0:00:15]} 33. Bxe5 {
[%emt 0:00:01]} Qg5 {[%emt 0:00:05]} 34. Bf6 {[%emt 0:00:07]} 1-0

[Event "GER-ch Blitz 2019"]
[Site "Magdeburg"]
[Date "2019.05.25"]
[Round "10.12"]
[White "Krause, Benedict"]
[Black "Zuyev, Igor"]
[Result "1-0"]
[ECO "B36"]
[WhiteElo "2434"]
[BlackElo "2447"]
[Annotator "NA"]
[PlyCount "57"]
[EventDate "2019.05.25"]
[EventType "tourn"]
[EventCountry "GER"]
[Tiebreak "Number of wins+Number of black wins"]
[SourceTitle "playchess.com"]
[Source "ChessBase"]
[SourceQuality "1"]
[TimeControl "180+2"]

1. e4 {[%emt 0:00:00]} c5 {[%emt 0:00:00]} 2. Nf3 {[%emt 0:00:00]} g6 {[%emt 0:
00:00]} 3. d4 {[%emt 0:00:02]} cxd4 {[%emt 0:00:01]} 4. Nxd4 {[%emt 0:00:00]}
Nc6 {[%emt 0:00:01]} 5. c4 {[%emt 0:00:01]} Nf6 {[%emt 0:00:02]} 6. Nc3 {
[%emt 0:00:01]} d6 {[%emt 0:00:00]} 7. Be2 {[%emt 0:00:06]} Bg7 {[%emt 0:00:01]
} 8. Nc2 {[%emt 0:00:01]} O-O {[%emt 0:00:03]} 9. O-O {[%emt 0:00:01]} Be6 {
[%emt 0:00:02]} 10. Be3 {[%emt 0:00:06]} Nd7 {[%emt 0:00:05]} 11. Qd2 {[%emt 0:
00:06]} Nc5 {[%emt 0:00:04]} 12. f3 {[%emt 0:00:08]} a6 {[%emt 0:00:08]} 13.
Rac1 {[%emt 0:00:09]} Rc8 {[%emt 0:00:09]} 14. b4 {[%emt 0:00:14]} Nd7 {
[%emt 0:00:06]} 15. Nd5 {[%emt 0:00:03]} Bxd5 {[%emt 0:00:03]} 16. cxd5 {
[%emt 0:00:07]} Nce5 {[%emt 0:00:08]} 17. Na3 {[%emt 0:00:26]} f5 {[%emt 0:00:
10]} 18. f4 {[%emt 0:00:14]} Nf7 {[%emt 0:00:06]} 19. exf5 {[%emt 0:00:03]}
gxf5 {[%emt 0:00:02]} 20. Bd3 {[%emt 0:00:17]} Nh8 {[%emt 0:00:01]} 21. Rxc8 {
[%emt 0:00:01]} Qxc8 {[%emt 0:00:02]} 22. Rc1 {[%emt 0:00:02]} Qd8 {[%emt 0:00:
07]} 23. Nc4 {[%emt 0:00:02]} Ng6 {[%emt 0:00:05]} 24. g3 {[%emt 0:00:08]} Nf6
{[%emt 0:00:10]} 25. Bxf5 {[%emt 0:00:02]} b5 {[%emt 0:00:20]} 26. Be6+ {
[%emt 0:00:02]} Kh8 {[%emt 0:00:01]} 27. Na5 {[%emt 0:00:04]} Ne4 {[%emt 0:00:
34]} 28. Qd3 {[%emt 0:00:10]} Nf6 {[%emt 0:00:10]} 29. Rc8 {[%emt 0:00:03]} 1-0

[Event "GER-ch Blitz 2019"]
[Site "Magdeburg"]
[Date "2019.05.25"]
[Round "10.13"]
[White "Frischmann, Rick"]
[Black "Schneider, Ilja"]
[Result "1-0"]
[ECO "B07"]
[WhiteElo "2320"]
[BlackElo "2494"]
[Annotator "ChessBase"]
[PlyCount "47"]
[EventDate "2019.05.25"]
[EventType "tourn"]
[EventCountry "GER"]
[Tiebreak "Number of wins+Number of black wins"]
[SourceTitle "playchess.com"]
[Source "ChessBase"]
[SourceQuality "1"]
[TimeControl "180+2"]

1. e4 {[%emt 0:00:00]} d6 {[%emt 0:00:00]} 2. d4 {[%emt 0:00:01]} Nf6 {[%emt 0:
00:01]} 3. Nc3 {[%emt 0:00:00]} e5 {[%emt 0:00:00]} 4. Nf3 {[%emt 0:00:01]}
exd4 5. Nxd4 {[%emt 0:00:01]} Be7 {[%emt 0:00:02]} 6. Be2 {[%emt 0:00:02]} O-O
{[%emt 0:00:01]} 7. Bf4 {[%emt 0:00:00]} Nc6 {[%emt 0:00:04]} 8. Qd2 {[%emt 0:
00:01]} Nxd4 {[%emt 0:00:01]} 9. Qxd4 {[%emt 0:00:01]} Bg4 {[%emt 0:00:01]} 10.
f3 {[%emt 0:00:02]} Be6 {[%emt 0:00:01]} 11. O-O-O {[%emt 0:00:04]} a6 {
[%emt 0:00:01]} 12. Qe3 {[%emt 0:00:04]} b5 {[%emt 0:00:10]} 13. g4 {[%emt 0:
00:16]} Re8 {[%emt 0:00:26]} 14. e5 {[%emt 0:00:14]} Nd7 {[%emt 0:00:05]} 15.
exd6 {[%emt 0:00:03]} cxd6 {[%emt 0:00:14]} 16. Bxd6 {[%emt 0:00:41]} Bxd6 {
[%emt 0:00:39]} 17. Rxd6 {[%emt 0:00:01]} Bxa2 {[%emt 0:00:03]} 18. Qd4 {
[%emt 0:00:15]} Be6 {[%emt 0:00:03]} 19. f4 {[%emt 0:00:14]} Qa5 {[%emt 0:00:
12]} 20. Bf3 {[%emt 0:00:01]} Rac8 {[%emt 0:00:34]} 21. f5 {[%emt 0:00:07]} b4
{[%emt 0:00:33]} 22. fxe6 {[%emt 0:00:13]} bxc3 {[%emt 0:00:14]} 23. exf7+ {
[%emt 0:00:01]} Kxf7 {[%emt 0:00:09]} 24. Rxd7+ {[%emt 0:00:01]} 1-0

[Event "GER-ch Blitz 2019"]
[Site "Magdeburg"]
[Date "2019.05.25"]
[Round "10.14"]
[White "Carow, Johannes"]
[Black "Hirneise, Jens"]
[Result "1/2-1/2"]
[ECO "A05"]
[WhiteElo "2445"]
[BlackElo "2375"]
[Annotator "NA"]
[PlyCount "152"]
[EventDate "2019.05.25"]
[EventType "tourn"]
[EventCountry "GER"]
[Tiebreak "Number of wins+Number of black wins"]
[SourceTitle "playchess.com"]
[Source "ChessBase"]
[SourceQuality "1"]
[TimeControl "180+2"]

1. Nf3 {[%emt 0:00:00]} Nf6 {[%emt 0:00:00]} 2. g3 {[%emt 0:00:01]} g6 {
[%emt 0:00:00]} 3. Bg2 {[%emt 0:00:01]} Bg7 {[%emt 0:00:00]} 4. O-O {[%emt 0:
00:01]} O-O {[%emt 0:00:01]} 5. d4 {[%emt 0:00:03]} d6 {[%emt 0:00:01]} 6. b3 {
[%emt 0:00:06]} e5 {[%emt 0:00:02]} 7. Bb2 {[%emt 0:00:13]} e4 {[%emt 0:00:08]}
8. Nfd2 {[%emt 0:00:01]} d5 {[%emt 0:00:03]} 9. c4 {[%emt 0:00:01]} c6 {
[%emt 0:00:01]} 10. Nc3 {[%emt 0:00:12]} Re8 {[%emt 0:00:03]} 11. f3 {[%emt 0:
00:20]} exf3 {[%emt 0:00:17]} 12. exf3 {[%emt 0:00:02]} dxc4 {[%emt 0:00:25]}
13. Nxc4 {[%emt 0:00:06]} Be6 {[%emt 0:00:01]} 14. Ba3 {[%emt 0:00:13]} Bf8 {
[%emt 0:00:08]} 15. Bxf8 {[%emt 0:00:05]} Rxf8 {[%emt 0:00:17]} 16. Qd2 {
[%emt 0:00:05]} Nbd7 {[%emt 0:00:02]} 17. Rad1 {[%emt 0:00:07]} Nb6 {[%emt 0:
00:03]} 18. Ne5 {[%emt 0:00:01]} Nbd5 {[%emt 0:00:06]} 19. Ne4 {[%emt 0:00:02]}
Nd7 {[%emt 0:00:11]} 20. Ng5 {[%emt 0:00:09]} Nxe5 {[%emt 0:00:08]} 21. dxe5 {
[%emt 0:00:01]} Qb6+ {[%emt 0:00:02]} 22. Rf2 {[%emt 0:00:32]} Rfd8 {[%emt 0:
00:33]} 23. Re1 {[%emt 0:00:43]} Qb4 {[%emt 0:00:18]} 24. Ne4 {[%emt 0:00:20]}
Qxd2 {[%emt 0:00:34]} 25. Rxd2 {[%emt 0:00:00]} Ne7 {[%emt 0:00:04]} 26. Rxd8+
{[%emt 0:00:08]} Rxd8 {[%emt 0:00:02]} 27. Nd6 {[%emt 0:00:00]} Nf5 {[%emt 0:
00:14]} 28. Nxb7 {[%emt 0:00:01]} Rd2 {[%emt 0:00:00]} 29. Na5 {[%emt 0:00:01]}
Bd5 {[%emt 0:00:04]} 30. Rf1 {[%emt 0:00:16]} Ne3 {[%emt 0:00:06]} 31. Rf2 {
[%emt 0:00:03]} Rd1+ {[%emt 0:00:04]} 32. Bf1 {[%emt 0:00:01]} Nxf1 {[%emt 0:
00:03]} 33. Rxf1 {[%emt 0:00:01]} Rd2 {[%emt 0:00:01]} 34. Rf2 {[%emt 0:00:01]}
Rd1+ {[%emt 0:00:01]} 35. Kg2 {[%emt 0:00:01]} Re1 {[%emt 0:00:02]} 36. Rc2 {
[%emt 0:00:03]} Rxe5 {[%emt 0:00:02]} 37. Nxc6 {[%emt 0:00:02]} Bxc6 38. Rxc6 {
[%emt 0:00:01]} Re2+ {[%emt 0:00:01]} 39. Kh3 {[%emt 0:00:01]} Rxa2 {[%emt 0:
00:01]} 40. Rc7 {[%emt 0:00:04]} Rb2 {[%emt 0:00:02]} 41. Rb7 {[%emt 0:00:02]}
a5 {[%emt 0:00:02]} 42. Ra7 {[%emt 0:00:05]} Rxb3 {[%emt 0:00:02]} 43. Rxa5 {
[%emt 0:00:01]} Rxf3 {[%emt 0:00:01]} 44. Kg2 {[%emt 0:00:00]} Rb3 {[%emt 0:00:
01]} 45. Rc5 {[%emt 0:00:02]} Kg7 {[%emt 0:00:01]} 46. Rc6 {[%emt 0:00:01]} h5
{[%emt 0:00:01]} 47. Rc5 {[%emt 0:00:00]} Kf8 {[%emt 0:00:01]} 48. Rc7 {
[%emt 0:00:01]} Kg7 {[%emt 0:00:01]} 49. Rc6 {[%emt 0:00:00]} Re3 {[%emt 0:00:
02]} 50. Rb6 {[%emt 0:00:01]} Re5 {[%emt 0:00:02]} 51. Kf3 {[%emt 0:00:02]}
Rf5+ {[%emt 0:00:00]} 52. Kg2 {[%emt 0:00:01]} Rf6 {[%emt 0:00:01]} 53. Rb5 {
[%emt 0:00:01]} Rd6 {[%emt 0:00:07]} 54. Rb2 {[%emt 0:00:02]} Rd3 {[%emt 0:00:
02]} 55. Kf2 {[%emt 0:00:02]} Ra3 {[%emt 0:00:02]} 56. Kg2 {[%emt 0:00:01]} g5
{[%emt 0:00:01]} 57. h3 {[%emt 0:00:05]} Kg6 {[%emt 0:00:02]} 58. Rb6+ {
[%emt 0:00:02]} f6 {[%emt 0:00:01]} 59. Rb2 {[%emt 0:00:00]} Kf5 {[%emt 0:00:
06]} 60. Rb5+ {[%emt 0:00:02]} Kg6 {[%emt 0:00:04]} 61. Rb2 {[%emt 0:00:04]}
Rc3 {[%emt 0:00:02]} 62. Ra2 {[%emt 0:00:01]} h4 {[%emt 0:00:03]} 63. gxh4 {
[%emt 0:00:03]} gxh4 {[%emt 0:00:01]} 64. Ra5 {[%emt 0:00:03]} Rg3+ {[%emt 0:
00:01]} 65. Kh2 {[%emt 0:00:00]} f5 {[%emt 0:00:01]} 66. Ra8 {[%emt 0:00:02]}
Rb3 {[%emt 0:00:08]} 67. Kg2 {[%emt 0:00:08]} Kg5 {[%emt 0:00:03]} 68. Ra4 {
[%emt 0:00:06]} Rg3+ {[%emt 0:00:03]} 69. Kh2 {[%emt 0:00:01]} Kf6 {[%emt 0:00:
01]} 70. Rxh4 {[%emt 0:00:03]} Rg8 {[%emt 0:00:03]} 71. Rh6+ {[%emt 0:00:02]}
Ke5 {[%emt 0:00:01]} 72. Ra6 {[%emt 0:00:01]} f4 {[%emt 0:00:01]} 73. Ra5+ {
[%emt 0:00:03]} Ke4 {[%emt 0:00:01]} 74. Ra4+ {[%emt 0:00:01]} Ke3 {[%emt 0:00:
02]} 75. Ra3+ {[%emt 0:00:00]} Ke4 {[%emt 0:00:02]} 76. Ra4+ {[%emt 0:00:01]}
Ke5 1/2-1/2

[Event "GER-ch Blitz 2019"]
[Site "Magdeburg"]
[Date "2019.05.25"]
[Round "10.15"]
[White "Stern, Rene"]
[Black "Schulz, Karsten"]
[Result "1-0"]
[ECO "A05"]
[WhiteElo "2538"]
[BlackElo "2227"]
[Annotator "ChessBase"]
[PlyCount "67"]
[EventDate "2019.05.25"]
[EventType "tourn"]
[EventCountry "GER"]
[Tiebreak "Number of wins+Number of black wins"]
[SourceTitle "playchess.com"]
[Source "ChessBase"]
[SourceQuality "1"]
[TimeControl "180+2"]

1. Nf3 {[%emt 0:00:00]} Nf6 {[%emt 0:00:00]} 2. c4 {[%emt 0:00:01]} g6 {
[%emt 0:00:00]} 3. Nc3 {[%emt 0:00:01]} Bg7 {[%emt 0:00:00]} 4. e4 {[%emt 0:00:
01]} O-O {[%emt 0:00:02]} 5. d4 {[%emt 0:00:01]} c6 {[%emt 0:00:00]} 6. Be2 {
[%emt 0:00:01]} d5 {[%emt 0:00:01]} 7. e5 {[%emt 0:00:02]} Ne4 {[%emt 0:00:02]}
8. cxd5 {[%emt 0:00:01]} cxd5 {[%emt 0:00:01]} 9. O-O {[%emt 0:00:04]} Nc6 {
[%emt 0:00:03]} 10. Na4 {[%emt 0:00:32]} f6 {[%emt 0:00:07]} 11. exf6 {[%emt 0:
00:01]} exf6 {[%emt 0:00:02]} 12. Be3 {[%emt 0:00:01]} f5 {[%emt 0:00:13]} 13.
g3 {[%emt 0:00:24]} Be6 {[%emt 0:00:11]} 14. Rc1 {[%emt 0:00:03]} Rc8 {[%emt 0:
00:01]} 15. Nc5 {[%emt 0:00:03]} Nxc5 {[%emt 0:00:11]} 16. Rxc5 {[%emt 0:00:02]
} b6 {[%emt 0:00:20]} 17. Rc1 {[%emt 0:00:01]} Na5 {[%emt 0:00:05]} 18. b3 {
[%emt 0:00:03]} Qd7 {[%emt 0:00:07]} 19. Qd2 {[%emt 0:00:03]} Rxc1 {[%emt 0:00:
03]} 20. Rxc1 {[%emt 0:00:01]} Rc8 {[%emt 0:00:01]} 21. Bf4 {[%emt 0:00:21]}
Rxc1+ {[%emt 0:00:08]} 22. Qxc1 {[%emt 0:00:01]} Qc8 {[%emt 0:00:08]} 23. Qe3 {
[%emt 0:00:05]} Nc6 {[%emt 0:00:11]} 24. h4 {[%emt 0:00:12]} Bf7 {[%emt 0:00:
06]} 25. Qc3 {[%emt 0:00:16]} Ne7 {[%emt 0:00:10]} 26. Qb4 {[%emt 0:00:05]} Bf8
{[%emt 0:00:05]} 27. Qd2 {[%emt 0:00:02]} Nc6 {[%emt 0:00:07]} 28. Bb5 {
[%emt 0:00:11]} Nd8 {[%emt 0:00:08]} 29. Be5 {[%emt 0:00:17]} Ne6 {[%emt 0:00:
03]} 30. Kg2 {[%emt 0:00:06]} a5 {[%emt 0:00:06]} 31. Ng5 {[%emt 0:00:06]} Nxg5
{[%emt 0:00:07]} 32. Qxg5 {[%emt 0:00:01]} Qc2 {[%emt 0:00:09]} 33. Qf6 {
[%emt 0:00:05]} Qe4+ {[%emt 0:00:12]} 34. Kh2 {[%emt 0:00:01]} 1-0

[Event "GER-ch Blitz 2019"]
[Site "Magdeburg"]
[Date "2019.05.25"]
[Round "11.1"]
[White "Gustafsson, Jan"]
[Black "Buhmann, Rainer"]
[Result "1-0"]
[ECO "D35"]
[WhiteElo "2639"]
[BlackElo "2573"]
[Annotator "RC"]
[PlyCount "45"]
[EventDate "2019.05.25"]
[EventType "tourn"]
[EventCountry "GER"]
[Tiebreak "Number of wins+Number of black wins"]
[SourceTitle "playchess.com"]
[Source "ChessBase"]
[SourceQuality "1"]
[TimeControl "180+2"]

1. c4 {[%emt 0:00:00]} e6 {[%emt 0:00:02]} 2. Nc3 {[%emt 0:00:02]} d5 {[%emt 0:
00:02]} 3. d4 {[%emt 0:00:01]} Nf6 {[%emt 0:00:04]} 4. cxd5 {[%emt 0:00:01]}
exd5 {[%emt 0:00:01]} 5. Bg5 {[%emt 0:00:02]} Be7 {[%emt 0:00:02]} 6. e3 {
[%emt 0:00:01]} O-O {[%emt 0:00:02]} 7. Bd3 {[%emt 0:00:02]} Re8 {[%emt 0:00:
02]} 8. Qc2 {[%emt 0:00:05]} h6 {[%emt 0:00:04]} 9. Bh4 {[%emt 0:00:15]} c5 {
[%emt 0:00:02]} 10. dxc5 d4 {[%emt 0:00:01]} 11. Bxf6 {[%emt 0:00:36]} Bxf6 {
[%emt 0:00:03]} 12. Ne4 {[%emt 0:00:02]} dxe3 {[%emt 0:00:05]} 13. fxe3 {
[%emt 0:00:02]} Bg5 {[%emt 0:00:18]} 14. O-O-O {[%emt 0:00:18]} Bxe3+ {[%emt 0:
00:18]} 15. Kb1 {[%emt 0:00:00]} Qc7 {[%emt 0:00:51]} 16. Nf3 {[%emt 0:00:09]}
Be6 {[%emt 0:00:36]} 17. Rhe1 {[%emt 0:00:11]} Bf4 {[%emt 0:00:06]} 18. g3 {
[%emt 0:00:02]} f5 {[%emt 0:00:17]} 19. gxf4 {[%emt 0:00:11]} fxe4 {[%emt 0:00:
01]} 20. Rxe4 {[%emt 0:00:03]} Qf7 {[%emt 0:00:13]} 21. Rxe6 {[%emt 0:00:07]}
Rxe6 {[%emt 0:00:02]} 22. Bc4 {[%emt 0:00:10]} Nc6 {[%emt 0:00:04]} 23. f5 {
[%emt 0:00:03]} 1-0